[Event "Late-Titled-Tuesday-Blitz-January-30-2024"]
[Site "Chess.com"]
[Date "2024.01.30"]
[Round "9"]
[White "BardArtem"]
[Black "djano"]
[Result "1-0"]
[WhiteElo "2775"]
[BlackElo "2622"]
[TimeControl "180+1"]
[EndTime "15:43:43 PST"]
[Termination "BardArtem won by resignation"]

1. e4 {[%clk 0:03:00.9]} 1... c5 {[%clk 0:02:58]} 2. c3 {[%clk 0:03:00.8]} 2...
d5 {[%clk 0:02:53.8]} 3. exd5 {[%clk 0:03:01.7]} 3... Nf6 {[%clk 0:02:54.4]} 4.
Bb5+ {[%clk 0:02:59.4]} 4... Nbd7 {[%clk 0:02:54.7]} 5. Nf3 {[%clk 0:02:55.8]}
5... Nxd5 {[%clk 0:02:52.9]} 6. d4 {[%clk 0:02:55.7]} 6... e6 {[%clk 0:02:52.6]}
7. O-O {[%clk 0:02:55.6]} 7... a6 {[%clk 0:02:51]} 8. Be2 {[%clk 0:02:54.9]}
8... cxd4 {[%clk 0:02:49.8]} 9. Nxd4 {[%clk 0:02:53.3]} 9... Bc5 {[%clk
0:02:44.6]} 10. Bf3 {[%clk 0:02:52.2]} 10... O-O {[%clk 0:02:43.9]} 11. Re1
{[%clk 0:02:52.1]} 11... Qf6 {[%clk 0:02:36.3]} 12. Nb3 {[%clk 0:02:45.3]} 12...
Ba7 {[%clk 0:02:30.2]} 13. N1d2 {[%clk 0:02:43.4]} 13... Ne5 {[%clk 0:02:22.2]}
14. Qe2 {[%clk 0:02:34.9]} 14... Bb8 {[%clk 0:01:48.5]} 15. Ne4 {[%clk
0:02:22.2]} 15... Nxf3+ {[%clk 0:01:47.1]} 16. Qxf3 {[%clk 0:02:23.1]} 16... Qe5
{[%clk 0:01:26]} 17. Qg3 {[%clk 0:02:19.8]} 17... Qf5 {[%clk 0:01:18.9]} 18. Qh4
{[%clk 0:02:05.7]} 18... b6 {[%clk 0:01:08.1]} 19. Nd4 {[%clk 0:02:05.3]} 19...
Qg6 {[%clk 0:01:02.7]} 20. Qg5 {[%clk 0:01:56.6]} 20... Qxg5 {[%clk 0:00:58.9]}
21. Bxg5 {[%clk 0:01:57.5]} 21... h6 {[%clk 0:00:56.4]} 22. Bh4 {[%clk
0:01:57.8]} 22... Bb7 {[%clk 0:00:52]} 23. Bg3 {[%clk 0:01:54.8]} 23... Nf4
{[%clk 0:00:51.1]} 24. Rad1 {[%clk 0:01:51.1]} 24... Nxg2 {[%clk 0:00:47]} 25.
Kxg2 {[%clk 0:01:48.8]} 25... f5 {[%clk 0:00:47.3]} 26. Bxb8 {[%clk 0:01:28.3]}
26... Raxb8 {[%clk 0:00:37.5]} 27. Nxe6 {[%clk 0:01:28.3]} 27... Rfe8 {[%clk
0:00:38]} 28. Rd6 {[%clk 0:01:17.9]} 28... Bxe4+ {[%clk 0:00:32.8]} 29. Kg3
{[%clk 0:01:17.9]} 29... Re7 {[%clk 0:00:27.6]} 30. f3 {[%clk 0:01:15]} 30...
Rbe8 {[%clk 0:00:22]} 31. Nd4 {[%clk 0:01:10.3]} 31... Bd3 {[%clk 0:00:13]} 32.
Rxe7 {[%clk 0:01:11.2]} 32... Rxe7 {[%clk 0:00:13.6]} 33. Nc6 {[%clk 0:01:06.4]}
33... f4+ {[%clk 0:00:09.5]} 34. Kxf4 {[%clk 0:01:05.2]} 34... Rf7+ {[%clk
0:00:09.9]} 35. Ke3 {[%clk 0:01:05.5]} 35... Bb5 {[%clk 0:00:08.4]} 36. Ne5
{[%clk 0:01:05.4]} 36... Re7 {[%clk 0:00:08.3]} 37. f4 {[%clk 0:01:06]} 37... g5
{[%clk 0:00:07]} 38. Rxb6 {[%clk 0:01:04.9]} 38... gxf4+ {[%clk 0:00:07.6]} 39.
Kxf4 {[%clk 0:01:05.3]} 39... Kg7 {[%clk 0:00:08.3]} 40. c4 {[%clk 0:01:04.7]}
40... Be8 {[%clk 0:00:09]} 41. c5 {[%clk 0:01:04.7]} 41... a5 {[%clk 0:00:08.6]}
42. c6 {[%clk 0:01:04.7]} 42... Rc7 {[%clk 0:00:07.7]} 43. Rb7 {[%clk
0:01:04.6]} 1-0

[Event "Late-Titled-Tuesday-Blitz-January-30-2024"]
[Site "Chess.com"]
[Date "2024.01.30"]
[Round "9"]
[White "RianKapriaga"]
[Black "jmpion"]
[Result "0-1"]
[WhiteElo "2353"]
[BlackElo "2517"]
[TimeControl "180+1"]
[EndTime "15:43:46 PST"]
[Termination "jmpion won on time"]

1. d4 {[%clk 0:02:53.9]} 1... Nf6 {[%clk 0:02:57.7]} 2. Nf3 {[%clk 0:02:54.2]}
2... d5 {[%clk 0:02:57.2]} 3. Bf4 {[%clk 0:02:54.5]} 3... Bf5 {[%clk 0:02:57.8]}
4. e3 {[%clk 0:02:54.8]} 4... e6 {[%clk 0:02:56.5]} 5. Nbd2 {[%clk 0:02:50.9]}
5... Bd6 {[%clk 0:02:51.4]} 6. Ne5 {[%clk 0:02:49]} 6... Nbd7 {[%clk 0:02:43.6]}
7. Be2 {[%clk 0:02:48.6]} 7... Ne4 {[%clk 0:02:39.6]} 8. g4 {[%clk 0:02:34.5]}
8... Bg6 {[%clk 0:02:32.1]} 9. h4 {[%clk 0:01:59.3]} 9... Bxe5 {[%clk
0:02:32.1]} 10. dxe5 {[%clk 0:01:50.9]} 10... h6 {[%clk 0:02:28.1]} 11. h5
{[%clk 0:01:48.8]} 11... Bh7 {[%clk 0:02:28.2]} 12. Nxe4 {[%clk 0:01:47.9]}
12... Bxe4 {[%clk 0:02:27.4]} 13. f3 {[%clk 0:01:47.8]} 13... Bh7 {[%clk
0:02:28.1]} 14. Qd2 {[%clk 0:01:43.6]} 14... Qe7 {[%clk 0:02:22.4]} 15. O-O-O
{[%clk 0:01:32.6]} 15... O-O-O {[%clk 0:02:22.2]} 16. Kb1 {[%clk 0:01:27]} 16...
Qc5 {[%clk 0:02:16.4]} 17. Rc1 {[%clk 0:01:09.4]} 17... Nb6 {[%clk 0:02:11.9]}
18. Qd4 {[%clk 0:01:08]} 18... Qe7 {[%clk 0:01:54.8]} 19. Bd3 {[%clk 0:01:06.2]}
19... c5 {[%clk 0:01:34.9]} 20. Qc3 {[%clk 0:01:05.2]} 20... Kb8 {[%clk
0:01:34.1]} 21. Rcg1 {[%clk 0:00:54.2]} 21... Bxd3 {[%clk 0:01:33.3]} 22. cxd3
{[%clk 0:00:53.4]} 22... d4 {[%clk 0:01:32]} 23. exd4 {[%clk 0:00:42.5]} 23...
Rxd4 {[%clk 0:01:29.1]} 24. Bc1 {[%clk 0:00:33.2]} 24... Qc7 {[%clk 0:01:09.8]}
25. f4 {[%clk 0:00:30.8]} 25... Rhd8 {[%clk 0:01:07.3]} 26. Rh3 {[%clk 0:00:28]}
26... Nd5 {[%clk 0:01:02.9]} 27. Qb3 {[%clk 0:00:20.5]} 27... Nxf4 {[%clk
0:00:55]} 28. Rf3 {[%clk 0:00:17]} 28... Nxd3 {[%clk 0:00:52.4]} 29. Be3 {[%clk
0:00:17.4]} 29... Rb4 {[%clk 0:00:51.5]} 30. Qc2 {[%clk 0:00:16]} 30... Rxb2+
{[%clk 0:00:51.5]} 31. Qxb2 {[%clk 0:00:15.3]} 31... Nxb2 {[%clk 0:00:52.4]} 32.
Kxb2 {[%clk 0:00:15.6]} 32... Qxe5+ {[%clk 0:00:50]} 33. Kc2 {[%clk 0:00:15.3]}
33... Qe4+ {[%clk 0:00:50.1]} 0-1

[Event "Late-Titled-Tuesday-Blitz-January-30-2024"]
[Site "Chess.com"]
[Date "2024.01.30"]
[Round "9"]
[White "finec2"]
[Black "rose107"]
[Result "1-0"]
[WhiteElo "2204"]
[BlackElo "2107"]
[TimeControl "180+1"]
[EndTime "15:43:47 PST"]
[Termination "finec2 won on time"]

1. d4 {[%clk 0:02:59.6]} 1... d5 {[%clk 0:02:47.2]} 2. Bf4 {[%clk 0:02:57.5]}
2... Nf6 {[%clk 0:02:45.5]} 3. e3 {[%clk 0:02:57.1]} 3... e6 {[%clk 0:02:44.8]}
4. Nd2 {[%clk 0:02:56.7]} 4... Bd6 {[%clk 0:02:44.5]} 5. Bg3 {[%clk 0:02:56.3]}
5... Bxg3 {[%clk 0:02:44.1]} 6. hxg3 {[%clk 0:02:56.1]} 6... b6 {[%clk
0:02:41.5]} 7. Bd3 {[%clk 0:02:55.3]} 7... Ba6 {[%clk 0:02:40.4]} 8. Bxa6 {[%clk
0:02:50.7]} 8... Nxa6 {[%clk 0:02:41.3]} 9. Qe2 {[%clk 0:02:50]} 9... Nb8 {[%clk
0:02:39.1]} 10. f4 {[%clk 0:02:49.9]} 10... c5 {[%clk 0:02:37.5]} 11. c3 {[%clk
0:02:49.5]} 11... Nc6 {[%clk 0:02:36.9]} 12. Ngf3 {[%clk 0:02:48.9]} 12... Qc7
{[%clk 0:02:33.3]} 13. Ne5 {[%clk 0:02:48.5]} 13... Nd7 {[%clk 0:02:28.9]} 14.
Qh5 {[%clk 0:02:34.2]} 14... Ndxe5 {[%clk 0:02:11.2]} 15. fxe5 {[%clk
0:02:35.1]} 15... cxd4 {[%clk 0:02:10.9]} 16. exd4 {[%clk 0:02:32.8]} 16...
O-O-O {[%clk 0:02:01]} 17. O-O {[%clk 0:02:30.4]} 17... f6 {[%clk 0:01:51.6]}
18. exf6 {[%clk 0:01:57.5]} 18... Qxg3 {[%clk 0:01:43]} 19. fxg7 {[%clk
0:01:41.1]} 19... Rhg8 {[%clk 0:01:32.2]} 20. Qxh7 {[%clk 0:01:06.7]} 20... Rxg7
{[%clk 0:01:27.4]} 21. Qh2 {[%clk 0:01:06.3]} 21... Qe3+ {[%clk 0:01:16.4]} 22.
Rf2 {[%clk 0:01:06.3]} 22... Rf8 {[%clk 0:01:14.6]} 23. Rf1 {[%clk 0:01:05.6]}
23... Rgf7 {[%clk 0:00:57.5]} 24. Nf3 {[%clk 0:00:58.2]} 24... Rg7 {[%clk
0:00:37.3]} 25. Re1 {[%clk 0:00:45]} 25... Qd3 {[%clk 0:00:16]} 26. Ne5 {[%clk
0:00:29.2]} 26... Rxf2 {[%clk 0:00:04.3]} 27. Nxd3 {[%clk 0:00:27.9]} 1-0

[Event "Late-Titled-Tuesday-Blitz-January-30-2024"]
[Site "Chess.com"]
[Date "2024.01.30"]
[Round "9"]
[White "PNEPaul"]
[Black "Kostukov_Alex"]
[Result "0-1"]
[WhiteElo "1877"]
[BlackElo "2306"]
[TimeControl "180+1"]
[EndTime "15:43:54 PST"]
[Termination "Kostukov_Alex won on time"]

1. e4 {[%clk 0:03:00.9]} 1... c5 {[%clk 0:02:49.4]} 2. Nf3 {[%clk 0:03:00.3]}
2... g6 {[%clk 0:02:46.6]} 3. d4 {[%clk 0:02:59.9]} 3... cxd4 {[%clk 0:02:46]}
4. c3 {[%clk 0:03:00.1]} 4... Bg7 {[%clk 0:02:46.1]} 5. Bc4 {[%clk 0:02:58.1]}
5... e6 {[%clk 0:02:44.6]} 6. cxd4 {[%clk 0:02:56.9]} 6... d5 {[%clk 0:02:44.2]}
7. exd5 {[%clk 0:02:50.1]} 7... exd5 {[%clk 0:02:45.1]} 8. Be2 {[%clk
0:02:49.9]} 8... Ne7 {[%clk 0:02:36.6]} 9. O-O {[%clk 0:02:49.6]} 9... O-O
{[%clk 0:02:36.5]} 10. Nc3 {[%clk 0:02:49.4]} 10... Nbc6 {[%clk 0:02:35.7]} 11.
h3 {[%clk 0:02:46.6]} 11... h6 {[%clk 0:02:35.5]} 12. Be3 {[%clk 0:02:45.8]}
12... Nf5 {[%clk 0:02:34.5]} 13. Qd2 {[%clk 0:02:41.6]} 13... Kh7 {[%clk
0:02:25.3]} 14. Rad1 {[%clk 0:02:31.7]} 14... Be6 {[%clk 0:02:20.5]} 15. Bf4
{[%clk 0:01:58.6]} 15... Ncxd4 {[%clk 0:02:16.7]} 16. Nxd4 {[%clk 0:01:52.9]}
16... Nxd4 {[%clk 0:02:16.2]} 17. Bd3 {[%clk 0:01:52.4]} 17... Qd7 {[%clk
0:02:06.3]} 18. Bb1 {[%clk 0:01:42]} 18... Rad8 {[%clk 0:02:00.9]} 19. Ne2
{[%clk 0:01:35]} 19... Nxe2+ {[%clk 0:01:56.1]} 20. Qxe2 {[%clk 0:01:34.3]}
20... d4 {[%clk 0:01:55.2]} 21. Qd2 {[%clk 0:01:31.1]} 21... Bf5 {[%clk
0:01:52.8]} 22. Bd3 {[%clk 0:01:12.7]} 22... Rfe8 {[%clk 0:01:48.6]} 23. Rfe1
{[%clk 0:01:03.5]} 23... Bxd3 {[%clk 0:01:44]} 24. Qxd3 {[%clk 0:01:02.2]} 24...
Qd5 {[%clk 0:01:43.6]} 25. b3 {[%clk 0:00:50.8]} 25... Rc8 {[%clk 0:01:35.2]}
26. Bg3 {[%clk 0:00:34.9]} 26... a6 {[%clk 0:01:21.2]} 27. Rxe8 {[%clk
0:00:23.9]} 27... Rxe8 {[%clk 0:01:20.1]} 28. Rd2 {[%clk 0:00:23.9]} 28... Re1+
{[%clk 0:01:14.3]} 29. Kh2 {[%clk 0:00:23.1]} 29... Qe4 {[%clk 0:01:14.2]} 30.
Qxe4 {[%clk 0:00:18.1]} 30... Rxe4 {[%clk 0:01:13.8]} 31. f3 {[%clk 0:00:18]}
31... Re7 {[%clk 0:01:10.9]} 32. Bd6 {[%clk 0:00:16.6]} 32... Rd7 {[%clk
0:01:10.5]} 33. Bc5 {[%clk 0:00:16.9]} 33... Be5+ {[%clk 0:01:05]} 34. g3 {[%clk
0:00:16]} 34... g5 {[%clk 0:01:04.6]} 35. Kg2 {[%clk 0:00:16]} 35... Kg6 {[%clk
0:01:04.7]} 36. Kf2 {[%clk 0:00:15.9]} 36... f5 {[%clk 0:01:04.5]} 37. Rd3
{[%clk 0:00:11.7]} 37... h5 {[%clk 0:01:02]} 38. Rd2 {[%clk 0:00:11.7]} 38... h4
{[%clk 0:01:00.9]} 39. gxh4 {[%clk 0:00:07.5]} 39... gxh4 {[%clk 0:01:01.8]} 40.
a4 {[%clk 0:00:03.3]} 40... Rd5 {[%clk 0:00:59.2]} 41. Ba3 {[%clk 0:00:01.2]}
41... Bf4 {[%clk 0:00:49.6]} 0-1

[Event "Late-Titled-Tuesday-Blitz-January-30-2024"]
[Site "Chess.com"]
[Date "2024.01.30"]
[Round "9"]
[White "Nick12772"]
[Black "Noki102"]
[Result "0-1"]
[WhiteElo "2380"]
[BlackElo "2530"]
[TimeControl "180+1"]
[EndTime "15:43:55 PST"]
[Termination "Noki102 won by checkmate"]

1. Nf3 {[%clk 0:03:00.9]} 1... d5 {[%clk 0:02:58.6]} 2. g3 {[%clk 0:03:01.3]}
2... Nc6 {[%clk 0:02:57]} 3. d4 {[%clk 0:03:01.2]} 3... Bf5 {[%clk 0:02:50.2]}
4. Bg2 {[%clk 0:03:01.2]} 4... e6 {[%clk 0:02:50.3]} 5. O-O {[%clk 0:03:01.7]}
5... h5 {[%clk 0:02:50.6]} 6. h4 {[%clk 0:03:00]} 6... Nf6 {[%clk 0:02:49]} 7.
c4 {[%clk 0:03:00.3]} 7... Qd7 {[%clk 0:02:48.7]} 8. cxd5 {[%clk 0:03:00.2]}
8... exd5 {[%clk 0:02:48.4]} 9. Nc3 {[%clk 0:02:59.9]} 9... Ne4 {[%clk 0:02:47]}
10. Ne5 {[%clk 0:02:41.7]} 10... Nxe5 {[%clk 0:02:44.4]} 11. dxe5 {[%clk
0:02:41.5]} 11... Nxc3 {[%clk 0:02:38.6]} 12. bxc3 {[%clk 0:02:42.4]} 12... c6
{[%clk 0:02:38]} 13. c4 {[%clk 0:02:21.4]} 13... dxc4 {[%clk 0:02:31.8]} 14. Qa4
{[%clk 0:02:21]} 14... Bc5 {[%clk 0:01:48.9]} 15. Qxc4 {[%clk 0:02:17.7]} 15...
Qd4 {[%clk 0:01:45.9]} 16. Qb3 {[%clk 0:01:28.5]} 16... Qxa1 {[%clk 0:01:19.4]}
17. Bb2 {[%clk 0:01:23.7]} 17... Qxf1+ {[%clk 0:01:10.6]} 18. Kxf1 {[%clk
0:01:12.5]} 18... O-O-O {[%clk 0:01:08.8]} 19. Kg1 {[%clk 0:00:53.8]} 19... Be6
{[%clk 0:01:04.5]} 20. Qa4 {[%clk 0:00:41.7]} 20... Bb6 {[%clk 0:00:53.6]} 21.
e3 {[%clk 0:00:34.4]} 21... Rd2 {[%clk 0:00:51.8]} 22. Bd4 {[%clk 0:00:34.6]}
22... Rd8 {[%clk 0:00:45]} 23. Bxb6 {[%clk 0:00:29.5]} 23... axb6 {[%clk
0:00:45.9]} 24. Qb4 {[%clk 0:00:23.4]} 24... Kc7 {[%clk 0:00:42.2]} 25. a4
{[%clk 0:00:23.2]} 25... Ra2 {[%clk 0:00:30.3]} 26. Bf3 {[%clk 0:00:08.1]} 26...
Rdd2 {[%clk 0:00:24.4]} 27. Qe7+ {[%clk 0:00:08.4]} 27... Kb8 {[%clk 0:00:22.7]}
28. Qf8+ {[%clk 0:00:08]} 28... Ka7 {[%clk 0:00:22.2]} 29. Bxh5 {[%clk
0:00:06.9]} 29... Rxf2 {[%clk 0:00:21.2]} 30. Qxg7 {[%clk 0:00:06.7]} 30... Rg2+
{[%clk 0:00:20.2]} 31. Kf1 {[%clk 0:00:06.9]} 31... Bc4+ {[%clk 0:00:19.6]} 32.
Ke1 {[%clk 0:00:05.5]} 32... Rg1# {[%clk 0:00:19.6]} 0-1

[Event "Late-Titled-Tuesday-Blitz-January-30-2024"]
[Site "Chess.com"]
[Date "2024.01.30"]
[Round "9"]
[White "brm72"]
[Black "jcibarra"]
[Result "0-1"]
[WhiteElo "2694"]
[BlackElo "2878"]
[TimeControl "180+1"]
[EndTime "15:44:12 PST"]
[Termination "jcibarra won by resignation"]

1. e4 {[%clk 0:03:00.9]} 1... c5 {[%clk 0:02:59.7]} 2. Nf3 {[%clk 0:03:00.4]}
2... e6 {[%clk 0:03:00]} 3. d4 {[%clk 0:03:00.7]} 3... cxd4 {[%clk 0:03:00.6]}
4. Nxd4 {[%clk 0:03:01.6]} 4... Bc5 {[%clk 0:03:00.8]} 5. Be3 {[%clk 0:02:49.4]}
5... Qb6 {[%clk 0:02:58.7]} 6. c3 {[%clk 0:02:42.3]} 6... Nc6 {[%clk 0:02:58.1]}
7. Na3 {[%clk 0:02:15.1]} 7... d5 {[%clk 0:02:32.6]} 8. exd5 {[%clk 0:02:04.3]}
8... exd5 {[%clk 0:02:33.5]} 9. Be2 {[%clk 0:01:58.4]} 9... Nf6 {[%clk
0:02:28.7]} 10. O-O {[%clk 0:01:58.2]} 10... O-O {[%clk 0:02:28.3]} 11. Rb1
{[%clk 0:01:43.9]} 11... Bxa3 {[%clk 0:02:13.3]} 12. bxa3 {[%clk 0:01:42.2]}
12... Qc7 {[%clk 0:02:07.9]} 13. Nb5 {[%clk 0:01:35.4]} 13... Qe7 {[%clk
0:02:06.9]} 14. Bf4 {[%clk 0:01:24.5]} 14... Bf5 {[%clk 0:01:48.7]} 15. Bd6
{[%clk 0:01:20.8]} 15... Qe4 {[%clk 0:01:17.2]} 16. Bxf8 {[%clk 0:01:04.5]}
16... Qxb1 {[%clk 0:01:16.6]} 17. Qd2 {[%clk 0:00:50.9]} 17... Qe4 {[%clk
0:01:07]} 18. Nd6 {[%clk 0:00:49]} 18... Qc2 {[%clk 0:00:59]} 19. Qxc2 {[%clk
0:00:17.9]} 19... Bxc2 {[%clk 0:00:58.6]} 20. Nxb7 {[%clk 0:00:18.8]} 20... Kxf8
{[%clk 0:00:56.7]} 21. Bb5 {[%clk 0:00:18.5]} 21... Ne5 {[%clk 0:00:50]} 22. Re1
{[%clk 0:00:17.5]} 22... Rb8 {[%clk 0:00:47.7]} 23. Nd6 {[%clk 0:00:17]} 23...
Rb6 {[%clk 0:00:41.8]} 24. Rxe5 {[%clk 0:00:13]} 24... Rxd6 {[%clk 0:00:41.8]}
25. g4 {[%clk 0:00:13.1]} 25... Re6 {[%clk 0:00:36.7]} 26. Rxe6 {[%clk
0:00:10.7]} 26... fxe6 {[%clk 0:00:37.6]} 27. f3 {[%clk 0:00:11.1]} 27... Ke7
{[%clk 0:00:37.4]} 28. Kf2 {[%clk 0:00:11.6]} 28... Kd6 {[%clk 0:00:37.8]} 29.
Ke3 {[%clk 0:00:12.5]} 29... Kc5 {[%clk 0:00:38.2]} 30. Be2 {[%clk 0:00:12.4]}
30... Bb1 {[%clk 0:00:38]} 31. h4 {[%clk 0:00:11.4]} 31... Bxa2 {[%clk
0:00:37.8]} 32. g5 {[%clk 0:00:11.4]} 32... Nd7 {[%clk 0:00:36.6]} 33. f4 {[%clk
0:00:12]} 33... Bc4 {[%clk 0:00:36]} 34. Bg4 {[%clk 0:00:12.2]} 34... Kd6 {[%clk
0:00:36.4]} 35. Kd4 {[%clk 0:00:12.4]} 35... Nb8 {[%clk 0:00:36.7]} 36. Bd1
{[%clk 0:00:12.4]} 36... Nc6+ {[%clk 0:00:37.2]} 37. Ke3 {[%clk 0:00:13.2]}
37... e5 {[%clk 0:00:30.1]} 38. f5 {[%clk 0:00:12.5]} 38... d4+ {[%clk
0:00:28.5]} 39. cxd4 {[%clk 0:00:13.4]} 39... exd4+ {[%clk 0:00:29.1]} 40. Ke4
{[%clk 0:00:14]} 40... Bd5+ {[%clk 0:00:29.2]} 41. Kd3 {[%clk 0:00:14.3]} 41...
Ke5 {[%clk 0:00:26.9]} 42. Bg4 {[%clk 0:00:13]} 42... Be4+ {[%clk 0:00:26.4]}
43. Kd2 {[%clk 0:00:12.8]} 43... Bxf5 {[%clk 0:00:26.8]} 44. Bf3 {[%clk
0:00:12.7]} 44... Na5 {[%clk 0:00:27.1]} 0-1

[Event "Late-Titled-Tuesday-Blitz-January-30-2024"]
[Site "Chess.com"]
[Date "2024.01.30"]
[Round "9"]
[White "aghasiyevkamal"]
[Black "KaydenTroffChess"]
[Result "1-0"]
[WhiteElo "2677"]
[BlackElo "2845"]
[TimeControl "180+1"]
[EndTime "15:44:12 PST"]
[Termination "aghasiyevkamal won on time"]

1. d4 {[%clk 0:02:55.2]} 1... Nf6 {[%clk 0:02:59.5]} 2. c4 {[%clk 0:02:53.7]}
2... g6 {[%clk 0:02:59.9]} 3. Nc3 {[%clk 0:02:53.4]} 3... d5 {[%clk 0:03:00.5]}
4. cxd5 {[%clk 0:02:52.7]} 4... Nxd5 {[%clk 0:03:01.4]} 5. e4 {[%clk 0:02:53.2]}
5... Nxc3 {[%clk 0:03:01.5]} 6. bxc3 {[%clk 0:02:53.9]} 6... Bg7 {[%clk
0:03:02.2]} 7. Nf3 {[%clk 0:02:54.5]} 7... c5 {[%clk 0:03:02.5]} 8. Be3 {[%clk
0:02:54.5]} 8... Qa5 {[%clk 0:03:02.1]} 9. Qd2 {[%clk 0:02:53.6]} 9... O-O
{[%clk 0:03:01.7]} 10. Rb1 {[%clk 0:02:53.3]} 10... a6 {[%clk 0:02:57.1]} 11.
Rc1 {[%clk 0:02:53.1]} 11... Bg4 {[%clk 0:02:56]} 12. Be2 {[%clk 0:02:49.9]}
12... Bxf3 {[%clk 0:02:49.8]} 13. Bxf3 {[%clk 0:02:46.9]} 13... cxd4 {[%clk
0:02:47.9]} 14. cxd4 {[%clk 0:02:46.9]} 14... Qxd2+ {[%clk 0:02:47]} 15. Kxd2
{[%clk 0:02:47.1]} 15... Nc6 {[%clk 0:02:30.7]} 16. d5 {[%clk 0:02:43.3]} 16...
Rfd8 {[%clk 0:02:16.5]} 17. Rhd1 {[%clk 0:02:36.9]} 17... Ne5 {[%clk 0:02:10.1]}
18. Rc7 {[%clk 0:02:31.2]} 18... e6 {[%clk 0:02:08]} 19. Ke2 {[%clk 0:02:29.6]}
19... exd5 {[%clk 0:01:48.6]} 20. Rxd5 {[%clk 0:02:27.8]} 20... b5 {[%clk
0:01:40]} 21. Bf4 {[%clk 0:02:14.4]} 21... Nc4 {[%clk 0:01:34]} 22. Ra7 {[%clk
0:01:44.9]} 22... Re8 {[%clk 0:01:11.6]} 23. Rdd7 {[%clk 0:01:41.1]} 23... Rxa7
{[%clk 0:01:07.7]} 24. Rxa7 {[%clk 0:01:41]} 24... a5 {[%clk 0:01:05.7]} 25. Kf1
{[%clk 0:01:32.9]} 25... Be5 {[%clk 0:01:02.9]} 26. Bh6 {[%clk 0:01:12.7]} 26...
Bg7 {[%clk 0:00:59.2]} 27. Bf4 {[%clk 0:01:11.3]} 27... h6 {[%clk 0:00:57]} 28.
h4 {[%clk 0:00:59.8]} 28... h5 {[%clk 0:00:30.7]} 29. g3 {[%clk 0:00:59.7]}
29... Be5 {[%clk 0:00:27]} 30. Bg5 {[%clk 0:00:51.1]} 30... b4 {[%clk
0:00:23.1]} 31. Bd1 {[%clk 0:00:47.2]} 31... Bd4 {[%clk 0:00:20.6]} 32. Rc7
{[%clk 0:00:42.7]} 32... Nd6 {[%clk 0:00:19.1]} 33. f3 {[%clk 0:00:39.2]} 33...
Nb5 {[%clk 0:00:14.2]} 34. Rd7 {[%clk 0:00:35.7]} 34... Bc5 {[%clk 0:00:05]} 35.
Bb3 {[%clk 0:00:23.2]} 35... Nd6 {[%clk 0:00:05.2]} 36. Bf4 {[%clk 0:00:21.4]}
1-0

[Event "Late-Titled-Tuesday-Blitz-January-30-2024"]
[Site "Chess.com"]
[Date "2024.01.30"]
[Round "9"]
[White "Chempiblinka"]
[Black "nindjaxx8"]
[Result "0-1"]
[WhiteElo "2325"]
[BlackElo "2581"]
[TimeControl "180+1"]
[EndTime "15:44:14 PST"]
[Termination "nindjaxx8 won by checkmate"]

1. Nf3 {[%clk 0:03:00.9]} 1... d5 {[%clk 0:02:59.9]} 2. g3 {[%clk 0:02:59.4]}
2... Nf6 {[%clk 0:02:59.1]} 3. Bg2 {[%clk 0:02:59.8]} 3... Bf5 {[%clk
0:02:57.5]} 4. c4 {[%clk 0:02:59.4]} 4... e6 {[%clk 0:02:57.2]} 5. O-O {[%clk
0:02:58.8]} 5... c6 {[%clk 0:02:57.1]} 6. cxd5 {[%clk 0:02:59]} 6... exd5 {[%clk
0:02:57.1]} 7. d3 {[%clk 0:02:59.6]} 7... Nbd7 {[%clk 0:02:57.2]} 8. Nc3 {[%clk
0:03:00]} 8... Be7 {[%clk 0:02:57.6]} 9. e4 {[%clk 0:02:40.8]} 9... dxe4 {[%clk
0:02:57.4]} 10. dxe4 {[%clk 0:02:41.7]} 10... Nxe4 {[%clk 0:02:50.4]} 11. Nxe4
{[%clk 0:02:39.1]} 11... Bxe4 {[%clk 0:02:51.3]} 12. Re1 {[%clk 0:02:31.6]}
12... Nf6 {[%clk 0:02:48.1]} 13. Qb3 {[%clk 0:02:18.1]} 13... O-O {[%clk
0:02:44]} 14. Qxb7 {[%clk 0:01:59]} 14... Bc5 {[%clk 0:02:28.7]} 15. Bg5 {[%clk
0:01:27]} 15... Rb8 {[%clk 0:02:22.9]} 16. Qa6 {[%clk 0:01:08.5]} 16... Rxb2
{[%clk 0:02:22.3]} 17. Rxe4 {[%clk 0:00:48.7]} 17... Rxf2 {[%clk 0:01:39.3]} 18.
Kh1 {[%clk 0:00:44.2]} 18... h6 {[%clk 0:00:27]} 19. Bxf6 {[%clk 0:00:42]} 19...
Qxf6 {[%clk 0:00:27.9]} 20. Rae1 {[%clk 0:00:32.1]} 20... Rxf3 {[%clk
0:00:25.3]} 21. Re8 {[%clk 0:00:20.9]} 21... Rxe8 {[%clk 0:00:11.3]} 22. Rxe8+
{[%clk 0:00:21.8]} 22... Kh7 {[%clk 0:00:11.9]} 23. Qe2 {[%clk 0:00:21]} 23...
Rf2 {[%clk 0:00:09]} 24. Qe4+ {[%clk 0:00:17.7]} 24... g6 {[%clk 0:00:09.4]} 25.
Qe1 {[%clk 0:00:12.7]} 25... Rxa2 {[%clk 0:00:07.4]} 26. Re2 {[%clk 0:00:12.1]}
26... Ra1 {[%clk 0:00:07.5]} 27. h4 {[%clk 0:00:05.3]} 27... Rxe1+ {[%clk
0:00:07.3]} 28. Rxe1 {[%clk 0:00:06.2]} 28... Qf2 {[%clk 0:00:06.8]} 29. Rf1
{[%clk 0:00:06.8]} 29... Qxg3 {[%clk 0:00:06.9]} 30. Bxc6 {[%clk 0:00:06.8]}
30... Qxh4+ {[%clk 0:00:06.6]} 31. Kg2 {[%clk 0:00:07.7]} 31... Qg4+ {[%clk
0:00:07.1]} 32. Kh1 {[%clk 0:00:05]} 32... Qh3# {[%clk 0:00:05.4]} 0-1